bitfinex-derivatives/quotes_BTCF0:USTF0_20250806
["timestamp","ask_amount","ask_price","bid_price","bid_amount"]
[1754489815658,0.72135595,114200.0,114190.0,0.07063315]
[1754489815849,0.2557608,114190.0,114180.0,0.92319]
[1754489816046,0.53920515,114190.0,114170.0,0.96253985]
[1754489816244,0.71437125,114180.0,114170.0,1.11213985]
[1754489816854,0.71437125,114180.0,114170.0,1.01052045]
[1754489817050,0.71437125,114180.0,114170.0,1.18570185]
[1754489818159,0.56977125,114180.0,114170.0,1.18570185]
[1754489818357,0.61930125,114180.0,114170.0,1.18570185]
[1754489818562,0.71437125,114180.0,114170.0,1.18570185]
[1754489819160,0.71437125,114180.0,114170.0,0.93968045]
[1754489819459,0.71737125,114180.0,114170.0,0.93968045]
[1754489819661,0.71737125,114180.0,114170.0,0.30671]
[1754489819961,0.72037125,114180.0,114170.0,0.93031]
[1754489820255,0.1811661,114180.0,114170.0,1.1738915]
[1754489820460,0.006,114180.0,114170.0,1.1738915]
[1754489820661,0.1811662,114180.0,114170.0,1.1738915]
[1754489821461,0.59249135,114180.0,114170.0,1.1738915]
[1754489821655,0.2306962,114180.0,114170.0,1.1738915]
[1754489821856,0.2306962,114180.0,114170.0,1.18200285]
[1754489822161,0.1811662,114180.0,114170.0,1.18200285]
[1754489822357,0.006,114180.0,114170.0,1.18200285]
[1754489822563,0.1811661,114180.0,114170.0,1.18200285]
[1754489823263,0.006,114180.0,114170.0,1.18200285]
[1754489823466,0.1761512,114190.0,114180.0,0.5520361]
[1754489823769,0.1751455,114200.0,114190.0,0.5520208]
[1754489824065,0.1751455,114200.0,114190.0,1.1764608]
[1754489825167,0.58647065,114200.0,114190.0,1.1764608]
[1754489825466,0.2550955,114200.0,114190.0,1.1764608]
[1754489825861,0.3505455,114200.0,114190.0,1.1764608]
[1754489826570,0.3545455,114200.0,114190.0,1.1764608]
[1754489826771,0.3575455,114200.0,114190.0,1.1764608]
[1754489827071,0.3575455,114200.0,114190.0,0.5520208]
[1754489827273,0.67321065,114200.0,114190.0,1.1763008]
[1754489827458,0.1821455,114200.0,114190.0,1.24753633]
[1754489829767,0.1821455,114200.0,114190.0,1.07238553]
[1754489830078,0.67002065,114200.0,114190.0,1.07238553]
[1754489830274,0.71934065,114200.0,114190.0,1.07182553]
[1754489830572,0.3575455,114200.0,114190.0,0.44810553]
[1754489830867,0.71934065,114200.0,114190.0,0.44810553]
[1754489831073,1.0811358,114200.0,114190.0,0.11813553]
[1754489831272,1.7047758,114200.0,114190.0,0.07123553]
[1754489831575,0.3505508,114190.0,114180.0,0.84648]
[1754489831764,0.71234595,114190.0,114180.0,0.84648]
[1754489832166,0.71234595,114190.0,114180.0,1.1437461]
[1754489832471,0.3505508,114190.0,114180.0,1.00071]
[1754489832673,0.71234595,114190.0,114180.0,1.00071]
[1754489833065,0.71434595,114190.0,114180.0,1.00071]
[1754489833265,0.71634595,114190.0,114180.0,1.00071]
[1754489833575,0.71634595,114190.0,114180.0,0.0469]
[1754489834273,0.71634595,114190.0,114180.0,0.15312]
[1754489834573,0.71634595,114190.0,114180.0,0.5520361]
[1754489834875,0.71634595,114190.0,114180.0,0.37687]
[1754489835269,0.71634595,114190.0,114180.0,0.0469]
[1754489835476,0.350566,114180.0,114170.0,0.5520384]
[1754489835770,0.71236115,114180.0,114170.0,0.99975]
[1754489835969,0.350566,114180.0,114170.0,0.37687]
[1754489836171,0.71236115,114180.0,114170.0,0.37687]
[1754489836474,0.3505815,114170.0,114160.0,1.2623321]
[1754489836674,0.71237665,114170.0,114160.0,1.2623321]
[1754489837377,0.71237665,114170.0,114160.0,0.99955]
[1754489837676,0.3505815,114170.0,114160.0,1.1747468]
[1754489837975,0.71237665,114170.0,114160.0,1.1747468]
[1754489838765,0.66624665,114170.0,114160.0,1.1747468]
[1754489838974,0.1751815,114170.0,114160.0,0.5520668]
[1754489839380,0.1751815,114170.0,114160.0,1.1743868]
[1754489839875,0.62092665,114170.0,114160.0,1.1743868]
[1754489840075,0.71637665,114170.0,114160.0,0.99931]
[1754489840271,0.71237665,114170.0,114160.0,0.37687]
[1754489840465,0.3505968,114160.0,114150.0,0.37687]
[1754489840671,0.71239195,114160.0,114150.0,0.99955]
[1754489840867,0.63265195,114160.0,114150.0,0.15312]
[1754489841074,0.63265195,114160.0,114150.0,0.0469]
[1754489841273,0.63265195,114160.0,114130.0,1.56336356]
[1754489841274,0.2247575,114140.0,114130.0,0.29258831]
[1754489841469,0.63268265,114140.0,114130.0,0.91586831]
[1754489841671,0.63268265,114140.0,114130.0,1.09111111]
[1754489841974,0.58655265,114140.0,114130.0,1.09938558]
[1754489842474,0.1752275,114140.0,114130.0,1.09103111]
[1754489842675,0.58655265,114140.0,114130.0,0.29258831]
[1754489843070,0.53702265,114140.0,114130.0,0.46783121]
[1754489843270,0.53702265,114140.0,114130.0,0.29258831]
[1754489843671,0.58655265,114140.0,114130.0,0.29258831]
[1754489843872,0.58655265,114140.0,114130.0,0.46783121]
[1754489844178,0.53702265,114140.0,114130.0,1.09135121]
[1754489844582,0.1752275,114140.0,114130.0,1.09135121]
[1754489845575,0.2190267,114150.0,114140.0,0.3978675]
[1754489846279,0.2190267,114150.0,114140.0,0.41766697]
[1754489846776,0.58282185,114150.0,114140.0,0.41766697]
[1754489847082,0.67848185,114150.0,114140.0,0.41766697]
[1754489847480,0.67848185,114150.0,114140.0,0.01979947]
[1754489847885,0.2189852,114170.0,114160.0,0.4854079]
[1754489848177,0.2189852,114170.0,114160.0,1.04081936]
[1754489848483,0.4134776,114180.0,114170.0,0.3978214]
[1754489848689,0.369683,114180.0,114170.0,0.3978214]
[1754489849787,0.320153,114180.0,114170.0,0.3978214]
[1754489849983,0.218973,114180.0,114170.0,0.3978214]
[1754489850184,0.9404182,114190.0,114180.0,0.3989561]
[1754489850381,0.1751602,114190.0,114180.0,0.3989561]
[1754489850688,0.3168375,114200.0,114190.0,0.3989408]
[1754489851486,0.3663675,114200.0,114190.0,0.3989408]
[1754489851683,0.2189275,114200.0,114190.0,0.4072052]
[1754489851992,0.175142,114200.0,114190.0,0.4072052]
[1754489852188,0.3064775,114210.0,114200.0,0.1751355]
[1754489852392,0.4043875,114210.0,114200.0,0.3989255]
[1754489853092,0.4539175,114210.0,114200.0,0.3989255]
[1754489853688,0.5007175,114210.0,114200.0,0.3989255]
[1754489853981,0.5047175,114210.0,114200.0,0.3989255]
[1754489855093,0.3646042,114210.0,114200.0,0.3989255]
[1754489855294,0.3696042,114210.0,114200.0,0.3989255]
[1754489855492,0.3696042,114210.0,114200.0,0.47014779]
[1754489855896,0.2716942,114210.0,114200.0,0.3989255]
[1754489856102,0.2706942,114210.0,114200.0,0.3989255]
[1754489856285,0.2686942,114210.0,114200.0,0.3989255]
[1754489856885,0.181132,114210.0,114200.0,0.3989255]
[1754489858697,0.373372,114210.0,114200.0,0.3989255]
[1754489859089,0.323572,114210.0,114200.0,0.3989255]
[1754489859290,0.525272,114210.0,114200.0,0.5494955]
[1754489859701,0.525272,114210.0,114200.0,0.37436]
[1754489859903,0.88306715,114210.0,114200.0,0.37436]
[1754489860101,0.3270354,114200.0,114190.0,0.5932976]
[1754489860303,0.5212754,114200.0,114190.0,0.5932976]
[1754489860502,0.5212754,114200.0,114190.0,0.54951]
[1754489860794,0.5212754,114200.0,114190.0,0.62087162]
[1754489860795,0.3057854,114200.0,114190.0,0.62087162]
[1754489861000,0.1751354,114200.0,114190.0,0.98266677]
[1754489861188,0.3114797,114210.0,114200.0,0.1751354]
[1754489861393,0.2676964,114210.0,114200.0,0.5494954]
[1754489861805,0.006,114210.0,114200.0,1.1728554]
[1754489861988,0.1811201,114210.0,114200.0,1.53465055]
[1754489862189,0.1781201,114210.0,114200.0,1.1728554]
[1754489862392,0.1811201,114210.0,114200.0,1.1728554]
[1754489862902,0.1781201,114210.0,114200.0,1.1728554]
[1754489863097,0.1811201,114210.0,114200.0,1.1728554]
[1754489863296,0.2777001,114210.0,114200.0,1.1728554]
[1754489864603,0.1811201,114210.0,114200.0,1.1728554]
[1754489864998,0.1811201,114210.0,114200.0,0.5494954]
[1754489865201,0.88772525,114210.0,114200.0,0.99808]
[1754489865401,0.88772525,114210.0,114200.0,1.1732154]
[1754489865591,0.88472525,114210.0,114200.0,0.37436]
[1754489865795,0.88372525,114210.0,114200.0,0.37436]
[1754489866304,0.88672525,114210.0,114200.0,0.30402]
[1754489866491,0.88672525,114210.0,114190.0,1.06924162]
[1754489866492,0.5199455,114200.0,114190.0,1.06924162]
[1754489866698,0.88174065,114200.0,114190.0,1.24439242]
[1754489866897,0.88174065,114200.0,114190.0,0.62087242]
[1754489867210,0.4731455,114200.0,114190.0,0.62087242]
[1754489867404,0.3044555,114200.0,114190.0,0.62087242]
[1754489867708,0.1751355,114200.0,114190.0,1.24479242]
[1754489868408,0.1781355,114200.0,114190.0,1.24479242]
[1754489868908,0.1771355,114200.0,114190.0,1.24479242]
[1754489869507,0.1761355,114200.0,114190.0,1.24479242]
[1754489869805,0.1771355,114200.0,114190.0,1.24479242]
[1754489871404,0.002,114200.0,114190.0,1.60658757]
[1754489872607,0.1751222,114210.0,114200.0,0.5494954]
[1754489873812,0.1771222,114210.0,114200.0,0.5494954]
[1754489874606,0.2757022,114210.0,114200.0,0.5494954]
[1754489874808,0.1791222,114210.0,114200.0,0.5494954]
[1754489875407,0.2118622,114210.0,114200.0,0.5494954]
[1754489875611,0.5239322,114210.0,114200.0,1.1719354]
[1754489875812,0.5239322,114210.0,114200.0,1.1719353]
[1754489876709,0.1791222,114210.0,114200.0,1.1719353]
[1754489877108,0.3579722,114210.0,114200.0,1.1719353]
[1754489877412,0.5239322,114210.0,114200.0,1.1719353]
[1754489877814,0.88572735,114210.0,114200.0,0.62224]
[1754489878014,0.88572735,114210.0,114200.0,1.1717354]
[1754489878313,0.88572735,114210.0,114200.0,0.37436]
[1754489878511,0.4731454,114200.0,114190.0,0.39700162]
[1754489878710,0.88174055,114200.0,114190.0,0.44572162]
[1754489879720,0.5209454,114200.0,114190.0,0.62087232]
[1754489880217,0.2088754,114200.0,114190.0,0.62087232]
[1754489880418,0.1761354,114200.0,114190.0,0.62087232]
[1754489880718,0.1771354,114200.0,114190.0,0.62087232]
[1754489881519,0.1771354,114200.0,114190.0,1.24343232]
[1754489882218,0.002,114200.0,114190.0,1.24343232]
[1754489882411,0.1771353,114200.0,114190.0,1.24343232]
[1754489882612,0.002,114200.0,114190.0,1.24343232]
[1754489882812,0.002,114200.0,114190.0,1.60522747]
[1754489883319,0.002,114200.0,114190.0,0.98266747]
[1754489883519,0.2076248,114220.0,114210.0,0.5560578]
[1754489883820,0.88184995,114220.0,114210.0,1.1783001]
[1754489884023,0.88184995,114220.0,114210.0,0.5560601]
[1754489884419,0.5200548,114220.0,114210.0,0.5560601]
[1754489884617,0.5200548,114220.0,114210.0,0.38094]
[1754489884923,0.5260548,114220.0,114210.0,0.5560601]
[1754489885119,0.4775448,114220.0,114210.0,0.5560601]
[1754489885326,0.1811048,114220.0,114210.0,0.5560601]
[1754489885717,0.2770548,114220.0,114210.0,0.5560601]
[1754489885918,0.3265848,114220.0,114210.0,0.5560601]
[1754489886926,0.5260548,114220.0,114210.0,0.5560601]
[1754489887317,0.5260548,114220.0,114210.0,0.38094]
[1754489887514,0.5260548,114220.0,114210.0,0.5560601]
[1754489887916,0.4775448,114220.0,114210.0,0.5560601]
[1754489888423,0.006,114220.0,114210.0,0.5560601]
[1754489888720,0.1811048,114220.0,114210.0,0.5560601]
[1754489889026,0.006,114220.0,114210.0,0.5560601]
[1754489889326,0.1811048,114220.0,114210.0,0.5560601]
[1754489889519,0.006,114220.0,114210.0,0.5560601]
[1754489889719,0.1811048,114220.0,114210.0,0.5560601]
[1754489890726,0.006,114220.0,114210.0,0.5560601]
[1754489891122,0.1811048,114220.0,114210.0,0.5560601]
[1754489891322,0.006,114220.0,114210.0,0.5560601]
[1754489891522,0.006,114220.0,114210.0,0.91785525]
[1754489892024,0.006,114220.0,114210.0,0.5560601]
[1754489892327,0.1811048,114220.0,114210.0,0.5560601]
[1754489892514,0.006,114220.0,114210.0,0.5560601]
[1754489893424,0.1811048,114220.0,114210.0,0.5560601]
[1754489893826,0.1811048,114220.0,114210.0,1.1775401]
[1754489895122,0.2770548,114220.0,114210.0,1.1775401]
[1754489895528,0.1811048,114220.0,114210.0,1.1775401]
[1754489897728,0.1811048,114220.0,114210.0,0.5560601]
[1754489897929,0.1811048,114220.0,114210.0,1.1772201]
[1754489898128,0.2770548,114220.0,114210.0,1.1772201]
[1754489898428,0.006,114220.0,114210.0,1.1772201]
[1754489899039,0.006,114220.0,114210.0,1.53901525]
[1754489900825,0.1811048,114220.0,114210.0,1.53901525]
[1754489901026,0.1811048,114220.0,114210.0,1.1772201]
[1754489901326,0.006,114220.0,114210.0,1.1772201]
[1754489901732,0.006,114220.0,114210.0,1.53901525]
[1754489902630,0.2188561,114240.0,114230.0,0.2980694]
[1754489902831,0.3703106,114250.0,114240.0,0.5560141]
[1754489903133,0.6087597,114270.0,114260.0,0.2980235]
[1754489903437,1.5172697,114270.0,114260.0,0.5559835]
[1754489903626,0.6572697,114270.0,114260.0,0.5559835]
[1754489903933,0.5212178,114280.0,114270.0,0.5559682]
[1754489904234,0.396985,114290.0,114280.0,0.4811928]
[1754489904425,0.396985,114290.0,114280.0,0.5559528]
[1754489904627,0.446515,114290.0,114280.0,0.5559528]
[1754489905533,0.353232,114290.0,114280.0,0.57544287]
[1754489905933,0.175009,114290.0,114280.0,0.57544287]
[1754489906133,0.6571876,114300.0,114290.0,0.5559375]
[1754489906622,1.5171876,114300.0,114290.0,1.1760575]
[1754489907026,1.5171876,114300.0,114290.0,1.1760175]
[1754489907429,1.5221876,114300.0,114290.0,1.1760175]
[1754489907925,1.88398275,114300.0,114290.0,0.9950375]
[1754489908131,1.88398275,114300.0,114290.0,0.71384]
[1754489908327,0.2739575,114290.0,114280.0,1.28285157]
[1754489908639,0.88774265,114290.0,114280.0,0.06739007]
[1754489908826,0.88774265,114290.0,114280.0,0.24036287]
[1754489909122,0.88774265,114290.0,114280.0,0.06535007]
[1754489909325,0.88774265,114290.0,114280.0,0.01949007]
[1754489909529,0.89274265,114290.0,114280.0,0.19450287]
[1754489909732,0.89274265,114290.0,114280.0,0.24036287]
[1754489910035,0.89674265,114290.0,114280.0,0.41436287]
[1754489910227,0.89674265,114290.0,114280.0,0.56509287]
[1754489910426,0.4864375,114290.0,114280.0,0.56509287]
[1754489911335,0.5319775,114290.0,114280.0,0.56509287]
[1754489911522,0.89377265,114290.0,114280.0,0.01949007]
[1754489912332,0.3261428,114280.0,114270.0,0.97436711]
[1754489912528,0.5193128,114280.0,114270.0,1.14836711]
[1754489912733,0.0965023,114290.0,114270.0,1.14836711]
[1754489912933,0.0965023,114290.0,114280.0,0.5454328]
[1754489912934,0.2277559,114290.0,114280.0,0.5454328]
[1754489913238,0.2277559,114290.0,114280.0,0.3944128]
[1754489913438,0.2237559,114290.0,114280.0,0.3944128]
[1754489913926,0.1799975,114290.0,114280.0,1.38056795]
[1754489914127,0.1799975,114290.0,114280.0,1.0187728]
[1754489914336,1.2205899,114300.0,114290.0,0.1749976]
[1754489914536,1.2205899,114300.0,114290.0,0.3943976]
[1754489914739,1.2701199,114300.0,114290.0,0.3943976]
[1754489914934,1.3156599,114300.0,114290.0,0.3943976]
[1754489915435,1.2263719,114300.0,114290.0,0.3943976]
[1754489916425,1.2273719,114300.0,114290.0,0.3943976]
[1754489916634,1.2273719,114300.0,114290.0,0.5454176]
[1754489917138,1.2283719,114300.0,114290.0,0.5454176]
[1754489917338,1.2739119,114300.0,114290.0,0.5454176]
[1754489917832,1.63570705,114300.0,114290.0,0.0454]
[1754489918340,1.63570705,114300.0,114290.0,0.5454176]
[1754489918535,1.2739119,114300.0,114290.0,0.5454176]
[1754489920633,1.2739119,114300.0,114290.0,0.0943]
[1754489920837,1.63570705,114300.0,114290.0,0.2203976]
[1754489922136,1.63570705,114300.0,114290.0,0.3268976]
[1754489922529,1.2739119,114300.0,114290.0,0.4432976]
[1754489922732,1.2739119,114300.0,114290.0,0.5454176]
[1754489924838,0.3188419,114300.0,114290.0,0.5454176]
[1754489925038,0.4013419,114300.0,114290.0,0.5454176]
[1754489925433,0.5650419,114300.0,114290.0,0.5454176]
[1754489928237,0.92683705,114300.0,114290.0,0.1749976]
[1754489928433,0.5650419,114300.0,114290.0,0.1749976]
[1754489928640,0.92683705,114300.0,114290.0,0.5454176]
[1754489929243,0.5195019,114300.0,114290.0,0.5454176]
[1754489929444,0.5650419,114300.0,114290.0,0.5454176]
[1754489930750,0.92683705,114300.0,114290.0,0.5454176]
[1754489930942,0.92683705,114300.0,114290.0,0.4779176]
[1754489931145,1.54879705,114300.0,114290.0,0.1749976]
[1754489932244,1.54879705,114300.0,114290.0,0.0454]
[1754489932446,1.54879705,114300.0,114290.0,0.2203976]
[1754489932750,1.1870019,114300.0,114290.0,0.2203976]
[1754489932939,1.54879705,114300.0,114290.0,0.2203976]
[1754489934041,1.54779705,114300.0,114290.0,0.2203976]
[1754489934246,1.54779705,114300.0,114290.0,0.002]
[1754489934746,1.54679705,114300.0,114290.0,0.002]
[1754489934941,1.54679705,114300.0,114290.0,0.003]
[1754489935641,0.4708229,114280.0,114270.0,0.29059362]
[1754489935843,1.50051805,114280.0,114270.0,0.07017762]
[1754489936046,0.3261583,114270.0,114260.0,0.0083383]
[1754489936346,0.81923135,114270.0,114260.0,0.1750436]
[1754489936746,0.81723135,114270.0,114260.0,0.1750436]
[1754489936944,1.00745135,114270.0,114260.0,0.3269436]
[1754489938047,1.00745135,114270.0,114260.0,0.1519]
[1754489938255,0.87818335,114270.0,114250.0,1.0790841]
[1754489938446,0.5163936,114260.0,114250.0,1.0807198]
[1754489938642,0.5163936,114260.0,114250.0,0.5649774]
[1754489938847,0.87618875,114260.0,114250.0,0.8385707]
[1754489939048,0.87518875,114260.0,114250.0,0.29570577]
[1754489939547,0.87518875,114260.0,114250.0,0.47276467]
[1754489939748,0.87518875,114260.0,114250.0,0.40620577]
[1754489939947,0.5133936,114260.0,114250.0,0.65419467]
[1754489940146,0.5133936,114260.0,114250.0,0.65619467]
[1754489940347,0.5133936,114260.0,114250.0,0.48113577]
[1754489940642,0.5133936,114260.0,114250.0,0.25675577]
[1754489940850,0.87518875,114260.0,114250.0,0.33168577]
[1754489941349,0.87518875,114260.0,114250.0,0.32312282]
[1754489941546,0.87518875,114260.0,114250.0,0.14087282]
[1754489941846,1.97271675,114260.0,114250.0,0.07521212]
[1754489942051,0.3254795,114230.0,114220.0,1.1902604]
[1754489942347,0.4668095,114230.0,114220.0,1.1902604]
[1754489942647,0.2508995,114230.0,114220.0,1.1902604]
[1754489942951,0.2057995,114230.0,114220.0,1.1902604]
[1754489943250,0.2057995,114230.0,114220.0,1.26633715]
[1754489943650,0.2067995,114230.0,114220.0,1.27033715]
[1754489943852,0.2067995,114230.0,114220.0,1.27858407]
[1754489944148,0.3968395,114230.0,114220.0,1.27858407]
[1754489944350,0.4678095,114230.0,114220.0,1.27858407]
[1754489944854,0.4678095,114230.0,114220.0,1.10347917]
[1754489945147,0.4211095,114230.0,114220.0,1.27378397]
[1754489945344,0.3006095,114230.0,114220.0,1.26978397]
[1754489945541,0.2067995,114230.0,114220.0,1.26978397]
[1754489946449,0.1760895,114230.0,114220.0,1.26978397]
[1754489946650,0.1760895,114230.0,114220.0,0.64622397]
[1754489946850,0.1760895,114230.0,114220.0,1.26986397]
[1754489947053,0.2211895,114230.0,114220.0,1.26986397]
[1754489947251,0.2707195,114230.0,114220.0,1.26986397]
[1754489947447,0.001,114230.0,114220.0,1.26986397]
[1754489948050,0.001,114230.0,114220.0,1.63165912]
[1754489949950,0.001,114230.0,114220.0,1.26986397]
[1754489952447,0.1760896,114230.0,114220.0,1.26986397]
[1754489952648,0.1760896,114230.0,114220.0,1.26938397]
[1754489953344,0.3968396,114230.0,114220.0,1.26938397]
[1754489953555,0.82960475,114230.0,114220.0,1.26926397]
[1754489953754,0.82960475,114230.0,114220.0,1.26926407]
[1754489954150,0.4678096,114230.0,114220.0,1.26926407]
[1754489954452,0.1760896,114230.0,114220.0,1.26926407]
[1754489955658,0.001,114230.0,114220.0,1.26926407]
[1754489956462,0.1760895,114230.0,114220.0,1.26926407]
[1754489956858,0.001,114230.0,114220.0,1.26926407]
[1754489957860,0.1750871,114240.0,114230.0,0.3626495]
[1754489958162,0.1750871,114240.0,114230.0,0.5472595]
[1754489958357,0.3524727,114250.0,114240.0,0.5472442]
[1754489958563,0.3524727,114250.0,114240.0,1.1700842]
[1754489958867,0.4327127,114250.0,114240.0,1.1700842]
[1754489959355,0.4327127,114250.0,114240.0,0.99501]
[1754489959356,0.7904518,114250.0,114240.0,0.99501]
[1754489959557,0.9081218,114250.0,114240.0,1.1700842]
[1754489959756,0.7486836,114250.0,114240.0,1.1700842]
[1754489959957,0.4396545,114250.0,114240.0,1.1700842]
[1754489960358,0.3901245,114250.0,114240.0,1.1700842]
[1754489960565,0.2208376,114250.0,114240.0,1.1700842]
[1754489961162,0.005,114250.0,114240.0,1.1700842]
[1754489961363,0.1800589,114250.0,114240.0,1.1700842]
[1754489961570,0.1750589,114250.0,114240.0,1.1710842]
[1754489961765,0.2211589,114250.0,114240.0,1.1710842]
[1754489962059,0.579718,114250.0,114240.0,1.1710842]
[1754489962264,0.579718,114250.0,114240.0,1.1700842]
[1754489962465,0.579718,114250.0,114240.0,1.1710842]
[1754489962466,0.2706889,114250.0,114240.0,1.1710842]
[1754489962664,0.579718,114250.0,114240.0,1.1710842]
[1754489962865,0.610428,114250.0,114240.0,1.1710842]
[1754489963566,0.1750589,114250.0,114240.0,1.1710842]
[1754489964073,0.2211589,114250.0,114240.0,1.1710842]
[1754489964565,0.531188,114250.0,114240.0,1.1710842]
[1754489964965,0.2221589,114250.0,114240.0,1.1710842]
[1754489965965,0.1760589,114250.0,114240.0,1.1700842]
[1754489968466,0.001,114250.0,114240.0,1.1700842]
[1754489968668,0.001,114250.0,114240.0,1.4791133]
[1754489968973,0.001,114250.0,114240.0,1.49892248]
[1754489970472,0.001,114250.0,114240.0,1.49992248]
[1754489971368,0.1760589,114250.0,114240.0,1.19089338]
[1754489971869,0.1760589,114250.0,114240.0,1.18989338]
[1754489972570,0.001,114250.0,114240.0,1.18989338]
[1754489972764,0.001,114250.0,114240.0,1.49892248]
[1754489973165,0.1760589,114250.0,114240.0,1.49892248]
[1754489973466,0.001,114250.0,114240.0,1.49892248]
[1754489975369,0.133485,114290.0,114270.0,0.19643]
[1754489975572,0.5891467,114290.0,114280.0,1.1599129]
[1754489975871,0.5453936,114290.0,114280.0,1.1599129]
[1754489976172,0.4994136,114290.0,114280.0,1.1599129]
[1754489976367,0.8544227,114290.0,114280.0,0.3645]
[1754489976673,0.8544227,114290.0,114280.0,1.1602729]
[1754489976979,0.8574227,114290.0,114280.0,1.16859433]
[1754489977166,0.5483936,114290.0,114280.0,1.16859433]
[1754489977362,0.5483936,114290.0,114280.0,1.1602729]
[1754489977363,0.5046405,114290.0,114280.0,1.1602729]
[1754489977566,0.4586605,114290.0,114280.0,1.1602729]
[1754489978175,0.4556605,114290.0,114280.0,1.1602729]
[1754489978472,0.4566605,114290.0,114280.0,1.1602729]
[1754489979173,0.7656896,114290.0,114280.0,1.1602729]
[1754489979375,0.7666896,114290.0,114280.0,1.22870146]
[1754489979877,0.8126696,114290.0,114280.0,1.22870146]
[1754489980480,0.5036405,114290.0,114280.0,1.22870146]
[1754489980682,0.7229266,114290.0,114280.0,1.22870146]
[1754489980977,0.4138975,114290.0,114280.0,1.22870146]
[1754489981177,0.7229266,114290.0,114280.0,1.22870146]
[1754489983178,0.7689066,114290.0,114280.0,1.22870146]
[1754489983980,0.002,114290.0,114280.0,1.22870146]
[1754489984278,0.3110291,114290.0,114280.0,1.22870146]
[1754489984579,0.1769976,114290.0,114280.0,1.22870146]
[1754489985875,0.002,114290.0,114280.0,1.53773056]
[1754489986177,0.002,114290.0,114280.0,1.469302]
[1754489986970,0.002,114290.0,114280.0,1.4777007]
[1754489989783,0.002,114290.0,114280.0,1.1686716]
[1754489991085,0.002,114290.0,114280.0,1.0900716]
[1754489991279,0.002,114290.0,114280.0,1.1372116]
[1754489991981,0.002,114290.0,114280.0,1.4462407]
[1754489992487,0.8083732,114320.0,114310.0,0.539467]
[1754489992782,0.8083732,114320.0,114310.0,1.159667]
[1754489992783,1.3593441,114320.0,114310.0,1.159667]
[1754489993085,1.3098141,114320.0,114310.0,1.159667]
[1754489993277,1.3593441,114320.0,114310.0,1.159667]
[1754489993679,1.3633441,114320.0,114310.0,1.160667]
[1754489994187,1.4143241,114320.0,114310.0,1.160667]
[1754489994789,1.4143241,114320.0,114310.0,1.129207]
[1754489994790,1.3381941,114320.0,114310.0,1.129207]
[1754489994989,1.3841741,114320.0,114310.0,1.129207]
[1754489995389,1.6932032,114320.0,114310.0,1.129207]
[1754489995794,1.6892032,114320.0,114310.0,1.129207]
[1754489996193,1.5287932,114320.0,114310.0,1.129207]
[1754489996392,1.5747732,114320.0,114310.0,1.129207]
[1754489997889,0.7147732,114320.0,114310.0,0.207427]
[1754489998087,0.8593532,114320.0,114310.0,0.175967]
[1754489998294,0.8593532,114320.0,114310.0,0.540467]
[1754489998496,0.8553532,114320.0,114310.0,0.539467]
[1754489998797,0.8563532,114320.0,114310.0,0.539467]
[1754489999096,0.7608432,114320.0,114310.0,0.539467]
[1754489999301,0.8103732,114320.0,114310.0,0.539467]
[1754489999492,0.8563532,114320.0,114310.0,0.539467]
[1754490000398,0.6923732,114320.0,114310.0,0.539467]
[1754490000595,0.7419032,114320.0,114310.0,0.539467]
[1754490000802,0.8525932,114320.0,114310.0,0.539467]
[1754490000996,0.5435641,114320.0,114310.0,0.222107]
[1754490001200,0.8525932,114320.0,114310.0,0.842187]
[1754490001599,0.8525932,114320.0,114310.0,0.66722]
[1754490001794,0.8525932,114320.0,114310.0,0.04714]
[1754490002101,0.453417,114310.0,114300.0,0.5397922]
[1754490002296,0.7624461,114310.0,114300.0,1.1598722]
[1754490002494,0.2083122,114300.0,114290.0,0.64713433]
[1754490002802,0.7624613,114300.0,114290.0,0.01984253]
[1754490002996,1.3825013,114300.0,114290.0,0.19484013]
[1754490003197,1.3825013,114300.0,114290.0,0.55965013]
[1754490003198,0.7143313,114300.0,114290.0,0.55965013]
[1754490003502,0.1749822,114300.0,114290.0,0.55965013]
[1754490003894,0.2140822,114300.0,114290.0,0.55965013]
[1754490004404,0.1749822,114300.0,114290.0,0.55965013]
[1754490004703,0.2245122,114300.0,114290.0,0.56165013]
[1754490004902,0.3908722,114300.0,114290.0,0.56165013]
[1754490005105,0.3427422,114300.0,114290.0,0.56165013]
[1754490005403,0.1759822,114300.0,114290.0,0.56065013]
[1754490006103,0.1759822,114300.0,114290.0,0.55965013]
[1754490006307,0.2103122,114300.0,114290.0,0.55965013]
[1754490006509,0.4535222,114300.0,114290.0,0.55965013]
[1754490006899,0.4535222,114300.0,114290.0,0.38465253]
[1754490006900,0.7625513,114300.0,114290.0,0.38465253]
[1754490007100,0.7625513,114300.0,114290.0,1.00465253]
[1754490007507,0.7625513,114300.0,114290.0,0.93091253]
[1754490007808,0.7625513,114300.0,114290.0,1.17965013]
[1754490008508,0.7625513,114300.0,114290.0,1.00465253]
[1754490008710,0.1749977,114290.0,114280.0,0.39599645]
[1754490008908,0.7605668,114290.0,114280.0,1.06163605]
[1754490009106,0.7605668,114290.0,114280.0,0.35942959]
[1754490009410,0.7605668,114290.0,114280.0,0.06835959]
[1754490009710,0.7605668,114290.0,114270.0,0.23730409]
[1754490009711,0.3155229,114280.0,114270.0,1.00420409]
[1754490009904,0.760582,114280.0,114270.0,1.17923239]
[1754490010115,0.760582,114280.0,114270.0,1.00420409]
[1754490010307,0.760582,114280.0,114270.0,1.17923239]
[1754490010610,0.4034229,114280.0,114270.0,1.17923239]
[1754490010809,0.2467129,114280.0,114270.0,1.17923239]
[1754490011014,0.1750129,114280.0,114270.0,1.18123239]
[1754490012712,0.1750129,114280.0,114270.0,1.25220814]
[1754490012913,0.5661498,114290.0,114280.0,0.4425529]
[1754490013117,0.8020868,114300.0,114290.0,0.1749976]
[1754490013308,0.8020868,114300.0,114290.0,1.1598076]
[1754490013509,0.3953977,114300.0,114290.0,1.1598076]
[1754490013705,0.4449277,114300.0,114290.0,1.1598076]
[1754490014215,0.7539568,114300.0,114290.0,1.1598076]
[1754490014618,0.7549568,114300.0,114290.0,1.1598076]
[1754490015012,0.7593314,114300.0,114290.0,1.1598076]
[1754490015208,0.001,114300.0,114290.0,1.1598076]
[1754490015614,0.001,114300.0,114290.0,1.4688367]
[1754490015810,0.002,114300.0,114290.0,1.4688367]
[1754490016614,0.001,114300.0,114290.0,1.4688367]
[1754490016819,0.7857727,114320.0,114310.0,0.539777]
[1754490017018,0.7857727,114320.0,114310.0,1.159777]
[1754490017314,0.742031,114320.0,114310.0,1.159777]
[1754490017522,0.03333,114320.0,114310.0,1.159777]
[1754490017714,0.2082817,114320.0,114310.0,1.159777]
[1754490017917,0.03433,114320.0,114310.0,1.159777]
[1754490018216,0.001,114320.0,114310.0,1.159777]
[1754490018416,0.1759517,114320.0,114310.0,1.159777]
[1754490018611,0.001,114320.0,114310.0,1.159777]
[1754490018812,0.1759517,114320.0,114310.0,1.159777]